[Event "Titled Tuesday Blitz August 15 Early 2023"]
[White "Spichkin, Alexander"]
[Black "Samarth J Rao"]
[WhiteFideId "4144074"]
[BlackFideId "46652370"]
[WhiteElo "2465"]
[BlackElo "2007"]
[Result "1/2-1/2"]
[Round "5"]
[TimeControl "180+1"]
[Date "2023.08.15"]
[WhiteClock "0:01:13"]
[BlackClock "0:00:03"]
[Board "141"]

1. f4 {[%clk 0:02:59]}  g6 {[%clk 0:02:37]} 2. Nf3 {[%clk 0:02:58]}  Bg7 {[%clk 0:02:37]} 3. e4 {[%clk 0:02:57]}  d6 {[%clk 0:02:33]} 4. d3 {[%clk 0:02:57]}  c5 {[%clk 0:02:26]} 5. Be2 {[%clk 0:02:57]}  Nc6 {[%clk 0:02:21]} 6. O-O {[%clk 0:02:57]}  Nf6 {[%clk 0:02:17]} 7. Nc3 {[%clk 0:02:57]}  O-O {[%clk 0:02:16]} 8. Qe1 {[%clk 0:02:55]}  Rb8 {[%clk 0:02:16]} 9. a4 {[%clk 0:02:50]}  a6 {[%clk 0:02:16]} 10. Qh4 {[%clk 0:02:50]}  b5 {[%clk 0:02:13]} 11. axb5 {[%clk 0:02:50]}  axb5 {[%clk 0:02:12]} 12. f5 {[%clk 0:02:50]}  Nd4 {[%clk 0:01:57]} 13. Bd1 {[%clk 0:02:50]}  Nxf3+ {[%clk 0:01:35]} 14. Rxf3 {[%clk 0:02:47]}  b4 {[%clk 0:01:17]} 15. Ne2 {[%clk 0:02:47]}  d5 {[%clk 0:01:02]} 16. Bh6 {[%clk 0:02:34]}  dxe4 {[%clk 0:01:00]} 17. dxe4 {[%clk 0:02:34]}  e5 {[%clk 0:00:45]} 18. Rh3 {[%clk 0:02:04]}  Nh5 {[%clk 0:00:37]} 19. Bxg7 {[%clk 0:02:02]}  Qxh4 {[%clk 0:00:34]} 20. Rxh4 {[%clk 0:02:02]}  Kxg7 {[%clk 0:00:28]} 21. g4 {[%clk 0:01:55]}  Nf4 {[%clk 0:00:28]} 22. Nxf4 {[%clk 0:01:56]}  exf4 {[%clk 0:00:28]} 23. Bf3 {[%clk 0:01:51]}  g5 {[%clk 0:00:27]} 24. Rh3 {[%clk 0:01:49]}  Bb7 {[%clk 0:00:22]} 25. e5 {[%clk 0:01:46]}  Bxf3 {[%clk 0:00:20]} 26. Rxf3 {[%clk 0:01:46]}  Rfe8 {[%clk 0:00:20]} 27. Re1 {[%clk 0:01:43]}  Rbd8 {[%clk 0:00:18]} 28. c3 {[%clk 0:01:41]}  Rd5 {[%clk 0:00:17]} 29. cxb4 {[%clk 0:01:36]}  cxb4 {[%clk 0:00:17]} 30. e6 {[%clk 0:01:36]}  fxe6 {[%clk 0:00:18]} 31. fxe6 {[%clk 0:01:36]}  Rd6 {[%clk 0:00:19]} 32. Rb3 {[%clk 0:01:36]}  Rb6 {[%clk 0:00:19]} 33. Re4 {[%clk 0:01:35]}  Rexe6 {[%clk 0:00:18]} 34. Rxe6 {[%clk 0:01:34]}  Rxe6 {[%clk 0:00:18]} 35. Rxb4 {[%clk 0:01:35]}  Rc6 {[%clk 0:00:18]} 36. h4 {[%clk 0:01:30]}  h6 {[%clk 0:00:18]} 37. hxg5 {[%clk 0:01:30]}  hxg5 {[%clk 0:00:19]} 38. Kf2 {[%clk 0:01:30]}  Kf6 {[%clk 0:00:17]} 39. Kf3 {[%clk 0:01:30]}  Rd6 {[%clk 0:00:17]} 40. Ke4 {[%clk 0:01:29]}  Re6+ {[%clk 0:00:17]} 41. Kf3 {[%clk 0:01:25]}  Re3+ {[%clk 0:00:16]} 42. Kf2 {[%clk 0:01:26]}  Re6 {[%clk 0:00:16]} 43. Rb8 {[%clk 0:01:25]}  Rc6 {[%clk 0:00:14]} 44. Kf3 {[%clk 0:01:24]}  Re6 {[%clk 0:00:14]} 45. Kf2 {[%clk 0:01:23]}  Rc6 {[%clk 0:00:13]} 46. Rb5 {[%clk 0:01:24]}  Rc2+ {[%clk 0:00:13]} 47. Kf3 {[%clk 0:01:23]}  Rc6 {[%clk 0:00:13]} 48. Rf5+ {[%clk 0:01:23]}  Kg6 {[%clk 0:00:13]} 49. b4 {[%clk 0:01:23]}  Rc3+ {[%clk 0:00:13]} 50. Ke4 {[%clk 0:01:24]}  Re3+ {[%clk 0:00:12]} 51. Kd5 {[%clk 0:01:23]}  Rg3 {[%clk 0:00:13]} 52. Rf8 {[%clk 0:01:21]}  Rxg4 {[%clk 0:00:13]} 53. b5 {[%clk 0:01:20]}  Rg1 {[%clk 0:00:13]} 54. b6 {[%clk 0:01:21]}  Rd1+ {[%clk 0:00:13]} 55. Kc6 {[%clk 0:01:20]}  Kh5 {[%clk 0:00:10]} 56. b7 {[%clk 0:01:20]}  Rb1 {[%clk 0:00:10]} 57. Rf5 {[%clk 0:01:20]}  Rxb7 {[%clk 0:00:06]} 58. Kxb7 {[%clk 0:01:20]}  Kg4 {[%clk 0:00:07]} 59. Rf8 {[%clk 0:01:21]}  f3 {[%clk 0:00:07]} 60. Kc6 {[%clk 0:01:21]}  Kg3 {[%clk 0:00:08]} 61. Kd5 {[%clk 0:01:22]}  f2 {[%clk 0:00:08]} 62. Rf5 {[%clk 0:01:20]}  Kg2 {[%clk 0:00:01]} 63. Rxg5+ {[%clk 0:01:19]}  Kh2 {[%clk 0:00:01]} 64. Rf5 {[%clk 0:01:16]}  Kg2 {[%clk 0:00:02]} 65. Rg5+ {[%clk 0:01:15]}  Kh2 {[%clk 0:00:02]} 66. Rh5+ {[%clk 0:01:13]}  Kg2 {[%clk 0:00:02]} 67. Rf5 {[%clk 0:01:13]}  f1=Q {[%clk 0:00:02]} 68. Rxf1 {[%clk 0:01:13]}  Kxf1 {[%clk 0:00:03]} 1/2-1/2


[Site "https://www.chess.com"]

[Event "Titled Tuesday Blitz August 15 Early 2023"]
[White "Veiga, Jose Francisco R P Neves"]
[Black "Harriott, Tyrell"]
[WhiteFideId "1930087"]
[BlackFideId "2086484"]
[WhiteElo "2673"]
[BlackElo "2422"]
[Result "1-0"]
[Round "5"]
[TimeControl "180+1"]
[Date "2023.08.15"]
[WhiteClock "0:00:18"]
[BlackClock "0:00:15"]
[Board "143"]

1. c4 {[%clk 0:02:47]}  e6 {[%clk 0:02:58]} 2. e4 {[%clk 0:02:44]}  d5 {[%clk 0:02:59]} 3. e5 {[%clk 0:02:35]}  c5 {[%clk 0:02:56]} 4. Nf3 {[%clk 0:02:34]}  Nc6 {[%clk 0:02:56]} 5. cxd5 {[%clk 0:02:30]}  exd5 {[%clk 0:02:54]} 6. Bb5 {[%clk 0:02:31]}  Ne7 {[%clk 0:02:52]} 7. d4 {[%clk 0:02:26]}  Ng6 {[%clk 0:02:49]} 8. O-O {[%clk 0:02:24]}  c4 {[%clk 0:02:43]} 9. b3 {[%clk 0:02:20]}  cxb3 {[%clk 0:02:40]} 10. Qxb3 {[%clk 0:02:18]}  Be7 {[%clk 0:02:38]} 11. Ba3 {[%clk 0:02:17]}  O-O {[%clk 0:02:37]} 12. Bxe7 {[%clk 0:02:17]}  Ngxe7 {[%clk 0:02:35]} 13. Nc3 {[%clk 0:02:17]}  Be6 {[%clk 0:02:34]} 14. Bd3 {[%clk 0:02:11]}  Qb6 {[%clk 0:02:31]} 15. Nb5 {[%clk 0:02:05]}  Nf5 {[%clk 0:02:21]} 16. Bxf5 {[%clk 0:01:46]}  Bxf5 {[%clk 0:02:22]} 17. Nd6 {[%clk 0:01:37]}  Qxb3 {[%clk 0:01:49]} 18. axb3 {[%clk 0:01:38]}  Bg4 {[%clk 0:01:49]} 19. Rfd1 {[%clk 0:01:28]}  b6 {[%clk 0:01:44]} 20. Rdc1 {[%clk 0:01:25]}  Bxf3 {[%clk 0:01:40]} 21. Rxc6 {[%clk 0:01:25]}  Be2 {[%clk 0:01:35]} 22. Rc7 {[%clk 0:01:25]}  a5 {[%clk 0:01:35]} 23. f4 {[%clk 0:01:19]}  b5 {[%clk 0:01:33]} 24. Kf2 {[%clk 0:01:18]}  Bd3 {[%clk 0:01:33]} 25. Ke3 {[%clk 0:01:18]}  Be4 {[%clk 0:01:22]} 26. Nxe4 {[%clk 0:01:16]}  dxe4 {[%clk 0:01:23]} 27. Kxe4 {[%clk 0:01:17]}  a4 {[%clk 0:01:22]} 28. bxa4 {[%clk 0:01:16]}  bxa4 {[%clk 0:01:22]} 29. Rc4 {[%clk 0:01:16]}  a3 {[%clk 0:01:22]} 30. Rc3 {[%clk 0:01:17]}  a2 {[%clk 0:01:19]} 31. Rc2 {[%clk 0:01:17]}  Ra3 {[%clk 0:01:15]} 32. Rcxa2 {[%clk 0:01:14]}  Rb3 {[%clk 0:01:14]} 33. Ra8 {[%clk 0:01:13]}  g6 {[%clk 0:01:13]} 34. Rxf8+ {[%clk 0:01:12]}  Kxf8 {[%clk 0:01:13]} 35. d5 {[%clk 0:01:12]}  Rb2 {[%clk 0:01:13]} 36. Ra8+ {[%clk 0:01:10]}  Ke7 {[%clk 0:01:12]} 37. d6+ {[%clk 0:01:09]}  Kd7 {[%clk 0:01:09]} 38. Ra7+ {[%clk 0:01:08]}  Ke8 {[%clk 0:01:09]} 39. Kf3 {[%clk 0:00:43]}  Rb3+ {[%clk 0:01:04]} 40. Kg4 {[%clk 0:00:43]}  h6 {[%clk 0:01:02]} 41. g3 {[%clk 0:00:38]}  Rb2 {[%clk 0:00:59]} 42. h4 {[%clk 0:00:38]}  Rb3 {[%clk 0:00:55]} 43. Ra8+ {[%clk 0:00:18]}  Kd7 {[%clk 0:00:54]} 44. Rh8 {[%clk 0:00:19]}  h5+ {[%clk 0:00:52]} 45. Kg5 {[%clk 0:00:20]}  Rxg3+ {[%clk 0:00:37]} 46. Kf6 {[%clk 0:00:20]}  Rg4 {[%clk 0:00:38]} 47. Kxf7 {[%clk 0:00:20]}  Rxf4+ {[%clk 0:00:37]} 48. Kxg6 {[%clk 0:00:21]}  Rxh4 {[%clk 0:00:34]} 49. Rxh5 {[%clk 0:00:20]}  Rf4 {[%clk 0:00:33]} 50. Rf5 {[%clk 0:00:19]}  Re4 {[%clk 0:00:31]} 51. Kf7 {[%clk 0:00:19]}  Re1 {[%clk 0:00:29]} 52. Kf6 {[%clk 0:00:19]}  Re2 {[%clk 0:00:28]} 53. Rf4 {[%clk 0:00:19]}  Rh2 {[%clk 0:00:25]} 54. e6+ {[%clk 0:00:14]}  Kxd6 {[%clk 0:00:24]} 55. Rd4+ {[%clk 0:00:15]}  Kc7 {[%clk 0:00:23]} 56. e7 {[%clk 0:00:13]}  Rf2+ {[%clk 0:00:18]} 57. Kg7 {[%clk 0:00:13]}  Rg2+ {[%clk 0:00:18]} 58. Kf8 {[%clk 0:00:13]}  Rf2+ {[%clk 0:00:18]} 59. Ke8 {[%clk 0:00:14]}  Rg2 {[%clk 0:00:18]} 60. Rc4+ {[%clk 0:00:12]}  Kb7 {[%clk 0:00:17]} 61. Kd7 {[%clk 0:00:12]}  Rd2+ {[%clk 0:00:17]} 62. Ke6 {[%clk 0:00:13]}  Re2+ {[%clk 0:00:17]} 63. Kd6 {[%clk 0:00:13]}  Rd2+ {[%clk 0:00:18]} 64. Ke5 {[%clk 0:00:14]}  Re2+ {[%clk 0:00:18]} 65. Re4 {[%clk 0:00:15]}  Rxe4+ {[%clk 0:00:17]} 66. Kxe4 {[%clk 0:00:16]}  Kc7 {[%clk 0:00:17]} 67. e8=Q {[%clk 0:00:17]}  Kd6 {[%clk 0:00:17]} 68. Qg6+ {[%clk 0:00:16]}  Kc7 {[%clk 0:00:18]} 69. Kd5 {[%clk 0:00:17]}  Kd7 {[%clk 0:00:19]} 70. Qf7+ {[%clk 0:00:17]}  Kc8 {[%clk 0:00:15]} 71. Kc6 {[%clk 0:00:18]} 1-0


[Site "https://www.chess.com"]

[Event "Titled Tuesday Blitz August 15 Early 2023"]
[White "Ivanov, Alexey"]
[Black "Shohat, Yotam"]
[WhiteFideId "4167635"]
[BlackFideId "2813955"]
[WhiteElo "2599"]
[BlackElo "2421"]
[Result "0-1"]
[Round "5"]
[TimeControl "180+1"]
[Date "2023.08.15"]
[WhiteClock "0:00:04"]
[BlackClock "0:00:04"]
[Board "144"]

1. a3 {[%clk 0:02:54]}  e5 {[%clk 0:02:58]} 2. c4 {[%clk 0:02:53]}  Nf6 {[%clk 0:02:42]} 3. e3 {[%clk 0:02:52]}  c6 {[%clk 0:02:31]} 4. d4 {[%clk 0:02:49]}  exd4 {[%clk 0:02:31]} 5. Qxd4 {[%clk 0:02:48]}  d5 {[%clk 0:02:31]} 6. Nc3 {[%clk 0:02:47]}  Be7 {[%clk 0:02:30]} 7. Nf3 {[%clk 0:02:44]}  O-O {[%clk 0:02:29]} 8. Bd2 {[%clk 0:02:37]}  Be6 {[%clk 0:02:28]} 9. cxd5 {[%clk 0:02:32]}  cxd5 {[%clk 0:02:26]} 10. Rc1 {[%clk 0:02:29]}  Nc6 {[%clk 0:02:26]} 11. Qa4 {[%clk 0:02:29]}  Qb6 {[%clk 0:02:26]} 12. b4 {[%clk 0:02:28]}  d4 {[%clk 0:02:20]} 13. Nb5 {[%clk 0:02:21]}  Ne4 {[%clk 0:02:04]} 14. Nbxd4 {[%clk 0:02:17]}  Nxd4 {[%clk 0:02:02]} 15. exd4 {[%clk 0:02:08]}  Nxd2 {[%clk 0:01:56]} 16. Kxd2 {[%clk 0:02:07]}  a5 {[%clk 0:01:20]} 17. Qb5 {[%clk 0:01:50]}  Qd6 {[%clk 0:01:19]} 18. Bc4 {[%clk 0:01:40]}  Qf4+ {[%clk 0:01:09]} 19. Ke2 {[%clk 0:01:38]}  Rac8 {[%clk 0:00:54]} 20. bxa5 {[%clk 0:00:54]}  Bxa3 {[%clk 0:00:32]} 21. Bxe6 {[%clk 0:00:53]}  Rxc1 {[%clk 0:00:30]} 22. Rxc1 {[%clk 0:00:51]}  Qxc1 {[%clk 0:00:31]} 23. Bd5 {[%clk 0:00:42]}  Qc2+ {[%clk 0:00:29]} 24. Ke1 {[%clk 0:00:40]}  Bb2 {[%clk 0:00:26]} 25. g3 {[%clk 0:00:26]}  Bc3+ {[%clk 0:00:19]} 26. Kf1 {[%clk 0:00:25]}  h6 {[%clk 0:00:12]} 27. Bxb7 {[%clk 0:00:23]}  Qd1+ {[%clk 0:00:04]} 28. Kg2 {[%clk 0:00:22]}  Qa1 {[%clk 0:00:02]} 29. a6 {[%clk 0:00:21]}  Bxd4 {[%clk 0:00:02]} 30. Nxd4 {[%clk 0:00:19]}  Qxd4 {[%clk 0:00:03]} 31. Bf3 {[%clk 0:00:18]}  Qa7 {[%clk 0:00:03]} 32. Bb7 {[%clk 0:00:17]}  Rb8 {[%clk 0:00:02]} 33. h4 {[%clk 0:00:17]}  g6 {[%clk 0:00:02]} 34. Qd5 {[%clk 0:00:18]}  h5 {[%clk 0:00:02]} 35. Qe4 {[%clk 0:00:18]}  Kg7 {[%clk 0:00:02]} 36. Qd3 {[%clk 0:00:17]}  Rxb7 {[%clk 0:00:02]} 37. Qc3+ {[%clk 0:00:17]}  Kh7 {[%clk 0:00:02]} 38. axb7 {[%clk 0:00:16]}  Qxb7+ {[%clk 0:00:03]} 39. Kh2 {[%clk 0:00:17]}  Qe7 {[%clk 0:00:03]} 40. Qf3 {[%clk 0:00:17]}  Qe6 {[%clk 0:00:03]} 41. Qf4 {[%clk 0:00:17]}  Kg7 {[%clk 0:00:04]} 42. Qd4+ {[%clk 0:00:16]}  Kg8 {[%clk 0:00:04]} 43. Qa7 {[%clk 0:00:16]}  Qf5 {[%clk 0:00:04]} 44. Qb6 {[%clk 0:00:15]}  Qf3 {[%clk 0:00:03]} 45. Qc5 {[%clk 0:00:14]}  Qf6 {[%clk 0:00:02]} 46. Qe3 {[%clk 0:00:14]}  Kg7 {[%clk 0:00:02]} 47. Kg2 {[%clk 0:00:13]}  Qf5 {[%clk 0:00:03]} 48. Qd4+ {[%clk 0:00:13]}  Qf6 {[%clk 0:00:02]} 49. Qxf6+ {[%clk 0:00:13]}  Kxf6 {[%clk 0:00:03]} 50. Kf3 {[%clk 0:00:13]}  Kf5 {[%clk 0:00:04]} 51. Ke3 {[%clk 0:00:13]}  Kg4 {[%clk 0:00:04]} 52. Ke4 {[%clk 0:00:14]}  Kh3 {[%clk 0:00:04]} 53. Kf4 {[%clk 0:00:12]}  Kg2 {[%clk 0:00:04]} 54. f3 {[%clk 0:00:13]}  Kh3 {[%clk 0:00:03]} 55. g4 {[%clk 0:00:13]}  Kxh4 {[%clk 0:00:02]} 56. gxh5 {[%clk 0:00:14]}  Kxh5 {[%clk 0:00:03]} 57. Kg3 {[%clk 0:00:12]}  Kg5 {[%clk 0:00:03]} 58. f4+ {[%clk 0:00:12]}  Kf5 {[%clk 0:00:04]} 59. Kf3 {[%clk 0:00:12]}  f6 {[%clk 0:00:04]} 60. Ke3 {[%clk 0:00:12]}  Kg4 {[%clk 0:00:05]} 61. Ke4 {[%clk 0:00:13]}  Kg3 {[%clk 0:00:05]} 62. f5 {[%clk 0:00:12]}  g5 {[%clk 0:00:05]} 63. Kd5 {[%clk 0:00:13]}  Kh4 {[%clk 0:00:03]} 64. Ke6 {[%clk 0:00:14]}  g4 {[%clk 0:00:04]} 65. Kxf6 {[%clk 0:00:15]}  g3 {[%clk 0:00:05]} 66. Ke7 {[%clk 0:00:11]}  g2 {[%clk 0:00:05]} 67. f6 {[%clk 0:00:12]}  g1=Q {[%clk 0:00:05]} 68. f7 {[%clk 0:00:13]}  Qg7 {[%clk 0:00:05]} 69. Ke8 {[%clk 0:00:13]}  Qe5+ {[%clk 0:00:05]} 70. Kd7 {[%clk 0:00:11]}  Qf6 {[%clk 0:00:05]} 71. Ke8 {[%clk 0:00:12]}  Qe6+ {[%clk 0:00:05]} 72. Kf8 {[%clk 0:00:12]}  Kg5 {[%clk 0:00:04]} 73. Kg7 {[%clk 0:00:12]}  Qh6+ {[%clk 0:00:04]} 74. Kg8 {[%clk 0:00:12]}  Qg6+ {[%clk 0:00:03]} 75. Kh8 {[%clk 0:00:11]}  Qf6+ {[%clk 0:00:04]} 76. Kg8 {[%clk 0:00:10]}  Qe6 {[%clk 0:00:04]} 77. Kg7 {[%clk 0:00:10]}  Qe7 {[%clk 0:00:04]} 78. Kg8 {[%clk 0:00:09]}  Kg6 {[%clk 0:00:05]} 79. f8=Q {[%clk 0:00:04]}  Qh7# {[%clk 0:00:04]} 0-1


[Site "https://www.chess.com"]

[Event "Titled Tuesday Blitz August 15 Early 2023"]
[White "Gheorghiu, Calin"]
[Black "NovoselovRoman"]
[WhiteFideId "1200305"]
[WhiteElo "2405"]
[BlackElo "2584"]
[Result "1-0"]
[Round "5"]
[TimeControl "180+1"]
[Date "2023.08.15"]
[WhiteClock "0:00:15"]
[BlackClock "0:00:00"]
[Board "145"]

1. e4 {[%clk 0:03:00]}  d5 {[%clk 0:02:58]} 2. exd5 {[%clk 0:03:00]}  Qxd5 {[%clk 0:02:59]} 3. Nc3 {[%clk 0:03:00]}  Qd6 {[%clk 0:02:59]} 4. Nf3 {[%clk 0:02:59]}  Nf6 {[%clk 0:02:59]} 5. d4 {[%clk 0:02:59]}  c6 {[%clk 0:03:00]} 6. g3 {[%clk 0:02:59]}  Bf5 {[%clk 0:03:00]} 7. Bf4 {[%clk 0:02:59]}  Qd8 {[%clk 0:03:00]} 8. Bg2 {[%clk 0:03:00]}  e6 {[%clk 0:03:00]} 9. O-O {[%clk 0:03:00]}  Be7 {[%clk 0:02:57]} 10. Re1 {[%clk 0:03:00]}  O-O {[%clk 0:02:57]} 11. Ne5 {[%clk 0:02:56]}  Nbd7 {[%clk 0:02:56]} 12. g4 {[%clk 0:02:48]}  Nxe5 {[%clk 0:02:39]} 13. gxf5 {[%clk 0:02:46]}  Nc4 {[%clk 0:02:19]} 14. b3 {[%clk 0:02:23]}  Bb4 {[%clk 0:02:09]} 15. Qd3 {[%clk 0:01:59]}  Nb6 {[%clk 0:02:05]} 16. fxe6 {[%clk 0:01:37]}  fxe6 {[%clk 0:02:06]} 17. Bg5 {[%clk 0:01:21]}  Nbd5 {[%clk 0:01:07]} 18. Nxd5 {[%clk 0:00:37]}  exd5 {[%clk 0:01:07]} 19. c3 {[%clk 0:00:32]}  Bd6 {[%clk 0:01:06]} 20. Qh3 {[%clk 0:00:29]}  Qc7 {[%clk 0:00:32]} 21. Re6 {[%clk 0:00:26]}  Nd7 {[%clk 0:00:11]} 22. Rae1 {[%clk 0:00:24]}  Bf4 {[%clk 0:00:10]} 23. Be7 {[%clk 0:00:21]}  Rf7 {[%clk 0:00:09]} 24. Ba3 {[%clk 0:00:18]}  h6 {[%clk 0:00:05]} 25. Qh5 {[%clk 0:00:15]}  Nf6 {[%clk 0:00:00]} 26. Qg6 {[%clk 0:00:15]} 1-0


[Site "https://www.chess.com"]

[Event "Titled Tuesday Blitz August 15 Early 2023"]
[White "Santos Flores, Alberto"]
[Black "Kazakov, Mikhail"]
[WhiteFideId "3601234"]
[BlackFideId "14102749"]
[WhiteElo "2538"]
[BlackElo "2403"]
[Result "1-0"]
[Round "5"]
[TimeControl "180+1"]
[Date "2023.08.15"]
[WhiteClock "0:00:14"]
[BlackClock "0:00:00"]
[Board "147"]

1. e4 {[%clk 0:02:49]}  c5 {[%clk 0:02:22]} 2. Nf3 {[%clk 0:02:47]}  d6 {[%clk 0:02:22]} 3. Bb5+ {[%clk 0:02:46]}  Bd7 {[%clk 0:02:20]} 4. Bxd7+ {[%clk 0:02:45]}  Qxd7 {[%clk 0:02:21]} 5. c4 {[%clk 0:02:45]}  Nc6 {[%clk 0:02:20]} 6. d4 {[%clk 0:02:45]}  cxd4 {[%clk 0:02:21]} 7. Nxd4 {[%clk 0:02:46]}  Nf6 {[%clk 0:02:21]} 8. Nc3 {[%clk 0:02:46]}  g6 {[%clk 0:02:21]} 9. f3 {[%clk 0:02:46]}  Bg7 {[%clk 0:02:22]} 10. Be3 {[%clk 0:02:46]}  O-O {[%clk 0:02:22]} 11. Rc1 {[%clk 0:02:47]}  e6 {[%clk 0:02:22]} 12. O-O {[%clk 0:02:45]}  Rac8 {[%clk 0:02:17]} 13. b3 {[%clk 0:02:43]}  d5 {[%clk 0:02:17]} 14. Nxc6 {[%clk 0:02:34]}  bxc6 {[%clk 0:02:15]} 15. e5 {[%clk 0:02:34]}  Ne8 {[%clk 0:02:08]} 16. Bc5 {[%clk 0:02:31]}  Bxe5 {[%clk 0:02:05]} 17. Bxf8 {[%clk 0:02:31]}  Kxf8 {[%clk 0:02:06]} 18. Re1 {[%clk 0:02:24]}  Qd6 {[%clk 0:01:59]} 19. Ne2 {[%clk 0:01:59]}  Bxh2+ {[%clk 0:01:51]} 20. Kf2 {[%clk 0:01:59]}  Be5 {[%clk 0:01:43]} 21. Qd2 {[%clk 0:01:56]}  Bg7 {[%clk 0:01:32]} 22. cxd5 {[%clk 0:01:51]}  exd5 {[%clk 0:01:31]} 23. Qf4 {[%clk 0:01:43]}  Qd7 {[%clk 0:01:06]} 24. Rc2 {[%clk 0:01:33]}  Nc7 {[%clk 0:01:03]} 25. Nd4 {[%clk 0:01:27]}  Bxd4+ {[%clk 0:00:32]} 26. Qxd4 {[%clk 0:01:26]}  Ne6 {[%clk 0:00:28]} 27. Qh8+ {[%clk 0:01:20]}  Ke7 {[%clk 0:00:25]} 28. Qxh7 {[%clk 0:01:21]}  d4 {[%clk 0:00:22]} 29. Qh4+ {[%clk 0:01:15]}  Kf8 {[%clk 0:00:20]} 30. Qf6 {[%clk 0:01:07]}  Qd8 {[%clk 0:00:13]} 31. Qxd8+ {[%clk 0:01:04]}  Nxd8 {[%clk 0:00:14]} 32. Rec1 {[%clk 0:00:59]}  Rc7 {[%clk 0:00:08]} 33. Rc4 {[%clk 0:00:55]}  Rd7 {[%clk 0:00:09]} 34. Rd1 {[%clk 0:00:55]}  Ne6 {[%clk 0:00:07]} 35. Rxc6 {[%clk 0:00:54]}  Ke7 {[%clk 0:00:07]} 36. Rc4 {[%clk 0:00:49]}  Kf6 {[%clk 0:00:07]} 37. g3 {[%clk 0:00:48]}  g5 {[%clk 0:00:07]} 38. b4 {[%clk 0:00:46]}  Ke5 {[%clk 0:00:07]} 39. Rc8 {[%clk 0:00:41]}  Rb7 {[%clk 0:00:06]} 40. a3 {[%clk 0:00:41]}  a5 {[%clk 0:00:06]} 41. bxa5 {[%clk 0:00:36]}  Rb2+ {[%clk 0:00:04]} 42. Kf1 {[%clk 0:00:36]}  Ra2 {[%clk 0:00:04]} 43. a6 {[%clk 0:00:29]}  Rxa3 {[%clk 0:00:04]} 44. Ra8 {[%clk 0:00:29]}  Kd5 {[%clk 0:00:01]} 45. Ke2 {[%clk 0:00:25]}  Ke5 {[%clk 0:00:02]} 46. a7 {[%clk 0:00:23]}  f6 {[%clk 0:00:01]} 47. Rd3 {[%clk 0:00:21]}  Ra2+ {[%clk 0:00:01]} 48. Rd2 {[%clk 0:00:21]}  Ra3 {[%clk 0:00:02]} 49. Rb2 {[%clk 0:00:21]}  Ra4 {[%clk 0:00:02]} 50. Rb5+ {[%clk 0:00:18]}  Kd6 {[%clk 0:00:02]} 51. Rb7 {[%clk 0:00:17]}  Kc6 {[%clk 0:00:02]} 52. Re7 {[%clk 0:00:17]}  Nc5 {[%clk 0:00:01]} 53. Rc8+ {[%clk 0:00:17]}  Kd6 {[%clk 0:00:02]} 54. Rh7 {[%clk 0:00:16]}  Ra2+ {[%clk 0:00:02]} 55. Kf1 {[%clk 0:00:16]}  Ra1+ {[%clk 0:00:02]} 56. Kg2 {[%clk 0:00:16]}  Ra2+ {[%clk 0:00:02]} 57. Kh3 {[%clk 0:00:16]}  Nd3 {[%clk 0:00:01]} 58. a8=Q {[%clk 0:00:15]}  Nf2+ {[%clk 0:00:02]} 59. Kg2 {[%clk 0:00:15]}  Rd2 {[%clk 0:00:00]} 60. Rd8+ {[%clk 0:00:14]} 1-0


[Site "https://www.chess.com"]

[Event "Titled Tuesday Blitz August 15 Early 2023"]
[White "Avazkhonov, Alikhon"]
[Black "Hristodoulou, Panagiotis"]
[WhiteFideId "14208504"]
[BlackFideId "4214340"]
[WhiteElo "2392"]
[BlackElo "2509"]
[Result "0-1"]
[Round "5"]
[TimeControl "180+1"]
[Date "2023.08.15"]
[WhiteClock "0:00:01"]
[BlackClock "0:02:11"]
[Board "149"]

1. d4 {[%clk 0:00:57]}  Nf6 {[%clk 0:02:59]} 2. c4 {[%clk 0:00:58]}  e6 {[%clk 0:02:59]} 3. Nc3 {[%clk 0:00:59]}  Bb4 {[%clk 0:03:00]} 4. e3 {[%clk 0:00:59]}  O-O {[%clk 0:03:00]} 5. Bd2 {[%clk 0:01:00]}  b6 {[%clk 0:03:00]} 6. Nf3 {[%clk 0:00:59]}  Bb7 {[%clk 0:03:00]} 7. Bd3 {[%clk 0:00:59]}  d6 {[%clk 0:03:00]} 8. O-O {[%clk 0:00:59]}  Nbd7 {[%clk 0:03:01]} 9. a3 {[%clk 0:00:59]}  Bxc3 {[%clk 0:03:01]} 10. Bxc3 {[%clk 0:01:00]}  Qe7 {[%clk 0:03:01]} 11. Qc2 {[%clk 0:00:59]}  e5 {[%clk 0:03:01]} 12. Be2 {[%clk 0:00:46]}  Ne4 {[%clk 0:02:55]} 13. Rfd1 {[%clk 0:00:44]}  Nxc3 {[%clk 0:02:54]} 14. Qxc3 {[%clk 0:00:45]}  Rae8 {[%clk 0:02:47]} 15. b4 {[%clk 0:00:41]}  exd4 {[%clk 0:02:44]} 16. Nxd4 {[%clk 0:00:40]}  Ne5 {[%clk 0:02:41]} 17. f4 {[%clk 0:00:33]}  Nd7 {[%clk 0:02:37]} 18. Nf5 {[%clk 0:00:23]}  Qf6 {[%clk 0:02:35]} 19. Qxf6 {[%clk 0:00:23]}  Nxf6 {[%clk 0:02:36]} 20. Kf2 {[%clk 0:00:10]}  Ne4+ {[%clk 0:02:35]} 21. Ke1 {[%clk 0:00:09]}  Nc3 {[%clk 0:02:29]} 22. Rdc1 {[%clk 0:00:05]}  Ne4 {[%clk 0:02:26]} 23. Bf3 {[%clk 0:00:05]}  g6 {[%clk 0:02:25]} 24. Nd4 {[%clk 0:00:05]}  a6 {[%clk 0:02:21]} 25. Ne2 {[%clk 0:00:04]}  Re7 {[%clk 0:02:19]} 26. Bxe4 {[%clk 0:00:05]}  Rxe4 {[%clk 0:02:19]} 27. Kf2 {[%clk 0:00:05]}  Rfe8 {[%clk 0:02:20]} 28. Rc3 {[%clk 0:00:06]}  Kg7 {[%clk 0:02:16]} 29. Ng3 {[%clk 0:00:06]}  R4e7 {[%clk 0:02:16]} 30. c5 {[%clk 0:00:06]}  dxc5 {[%clk 0:02:13]} 31. bxc5 {[%clk 0:00:07]}  b5 {[%clk 0:02:12]} 32. c6 {[%clk 0:00:06]}  Bc8 {[%clk 0:02:12]} 33. Rd1 {[%clk 0:00:07]}  h5 {[%clk 0:02:11]} 34. h4 {[%clk 0:00:06]}  Bg4 {[%clk 0:02:11]} 35. e4 {[%clk 0:00:01]}  Bxd1 {[%clk 0:02:11]} 0-1


[Site "https://www.chess.com"]